[Event "I Magistral Barbera del Valles 2021"]
[Site "Barbera del Valles"]
[Date "2021.11.24"]
[Round "4.5"]
[White "Rios, Cristian Camilo"]
[Black "Hernandez, Cristian"]
[Result "1-0"]
[ECO "E32"]
[WhiteElo "2460"]
[BlackElo "2376"]
[Annotator "RC"]
[PlyCount "45"]
[EventDate "2021.11.20"]
[EventType "tourn"]
[EventCountry "ESP"]
[SourceTitle "playchess.com"]
[Source "ChessBase"]
[SourceQuality "1"]
[TimeControl "5400+30"]

1. d4 {[%emt 0:00:24]} Nf6 {[%emt 0:00:20]} 2. c4 {[%emt 0:00:14]} e6 {[%emt 0:00:18]} 3. Nc3 {[%emt 0:00:12]} Bb4 {[%emt 0:00:30]} 4. Qc2 {[%emt 0:00:16]} O-O {[%emt 0:01:15]} 5. e4 {[%emt 0:00:08]} d5 {[%emt 0:00:15]} 6. e5 {[%emt 0:00:11]} Ne4 {[%emt 0:00:06]} 7. Bd3 {[%emt 0:00:17]} c5 {[%emt 0:00:44]} 8. Nf3 {[%emt 0:00:17]} cxd4 {[%emt 0:00:28]} 9. Nxd4 {[%emt 0:00:10]} Nc5 {[%emt 0:00:35]} 10. Bxh7+ {[%emt 0:14:56]} Kh8 {[%emt 0:00:05]} 11. Nf3 {[%emt 0:02:55]} d4 {[%emt 0:02:44]} 12. Bg5 {[%emt 0:05:24]} f6 {[%emt 0:24:27]} 13. O-O-O {[%emt 0:00:12]} d3 {[%emt 0:10:14]} 14. Bxd3 {[%emt 0:03:28]} fxg5 {[%emt 0:00:03]} 15. Bg6 {[%emt 0:00:51]} Qe7 {[%emt 0:03:39]} 16. h4 {[%emt 0:01:37]} g4 {[%emt 0:00:11]} 17. Ng5 {[%emt 0:00:20]} Rf4 {[%emt 0:09:26]} 18. Ne2 {[%emt 0:09:03]} Rxf2 {[%emt 0:00:59]} 19. Rhf1 {[%emt 0:00:08]} g3 {[%emt 0:02:38]} 20. Rxf2 {[%emt 0:00:30]} gxf2 {[%emt 0:00:06]} 21. Bf7 {[%emt 0:00:17]} Bd2+ {[%emt 0:01:42]} 22. Kxd2 {[%emt 0:01:06]} Qd8+ {[%emt 0:00:55]} 23. Ke3 {[%emt 0:00:22]} 1-0